[Event "*** Titled Tuesday Blitz"]
[Site "Chess.com"]
[Date "2021.03.09"]
[Round "9"]
[White "ApoIogiA"]
[Black "thechesscorner64"]
[Result "1-0"]
[WhiteElo "2196"]
[BlackElo "2345"]
[TimeControl "180+1"]
[EndTime "11:49:04 PST"]
[Termination "ApoIogiA won by checkmate"]

1. d4 {[%clk 0:03:00.9]} 1... Nf6 {[%clk 0:02:59.2]} 2. c4 {[%clk 0:03:01]} 2...
e6 {[%clk 0:02:59.5]} 3. Nc3 {[%clk 0:03:00.1]} 3... Bb4 {[%clk 0:03:00]} 4. f3
{[%clk 0:03:00.5]} 4... d5 {[%clk 0:02:59.3]} 5. a3 {[%clk 0:02:58.2]} 5... Be7
{[%clk 0:02:58.2]} 6. e4 {[%clk 0:02:53.8]} 6... dxe4 {[%clk 0:02:58.1]} 7. fxe4
{[%clk 0:02:54.7]} 7... e5 {[%clk 0:02:58.3]} 8. d5 {[%clk 0:02:54.1]} 8... Bc5
{[%clk 0:02:58.3]} 9. Nf3 {[%clk 0:02:53.2]} 9... Bg4 {[%clk 0:02:58]} 10. Be2
{[%clk 0:02:52.2]} 10... O-O {[%clk 0:02:57.5]} 11. Bg5 {[%clk 0:02:45.5]} 11...
Nbd7 {[%clk 0:02:54.8]} 12. b4 {[%clk 0:02:38.5]} 12... Bxf3 {[%clk 0:02:53.3]}
13. Bxf3 {[%clk 0:02:31.1]} 13... Bd4 {[%clk 0:02:52]} 14. Rc1 {[%clk
0:02:29.9]} 14... h6 {[%clk 0:02:50.3]} 15. Bh4 {[%clk 0:02:28.3]} 15... a5
{[%clk 0:02:50.3]} 16. Nb5 {[%clk 0:02:04.5]} 16... axb4 {[%clk 0:02:27.6]} 17.
Nxd4 {[%clk 0:02:00.1]} 17... exd4 {[%clk 0:02:28.5]} 18. axb4 {[%clk
0:02:00.1]} 18... Qe7 {[%clk 0:02:15.4]} 19. O-O {[%clk 0:01:51]} 19... Rfe8
{[%clk 0:02:02.2]} 20. Qxd4 {[%clk 0:01:42.8]} 20... Qxb4 {[%clk 0:01:56]} 21.
Rb1 {[%clk 0:01:31]} 21... Qc5 {[%clk 0:01:39]} 22. Bxf6 {[%clk 0:01:23.9]}
22... gxf6 {[%clk 0:01:38.8]} 23. Qxc5 {[%clk 0:01:07.8]} 23... Nxc5 {[%clk
0:01:39.7]} 24. Rb5 {[%clk 0:00:53.7]} 24... b6 {[%clk 0:01:38]} 25. e5 {[%clk
0:00:49.2]} 25... fxe5 {[%clk 0:01:22.6]} 26. d6 {[%clk 0:00:48.4]} 26... e4
{[%clk 0:01:23]} 27. Bh5 {[%clk 0:00:44.1]} 27... Rf8 {[%clk 0:01:12.2]} 28.
dxc7 {[%clk 0:00:43.4]} 28... Rac8 {[%clk 0:01:10]} 29. Rxb6 {[%clk 0:00:40.2]}
29... Rxc7 {[%clk 0:01:10.1]} 30. Rxh6 {[%clk 0:00:29.2]} 30... Kg7 {[%clk
0:01:09.7]} 31. Rhf6 {[%clk 0:00:23.2]} 31... Nd3 {[%clk 0:00:55]} 32. Be2
{[%clk 0:00:12.3]} 32... Rxc4 {[%clk 0:00:50.9]} 33. Bxd3 {[%clk 0:00:12.5]}
33... exd3 {[%clk 0:00:50.9]} 34. Rd6 {[%clk 0:00:13.1]} 34... Rc3 {[%clk
0:00:45.4]} 35. Rd7 {[%clk 0:00:12.3]} 35... Kg6 {[%clk 0:00:42.2]} 36. h3
{[%clk 0:00:10.7]} 36... f5 {[%clk 0:00:39.8]} 37. Rf3 {[%clk 0:00:10.9]} 37...
Re8 {[%clk 0:00:24.1]} 38. Rfxd3 {[%clk 0:00:09.6]} 38... Rc1+ {[%clk
0:00:24.4]} 39. Kh2 {[%clk 0:00:09.4]} 39... Re2 {[%clk 0:00:24.2]} 40. R3d6+
{[%clk 0:00:08.5]} 40... Kg5 {[%clk 0:00:24.4]} 41. Rg7+ {[%clk 0:00:05.5]}
41... Kf4 {[%clk 0:00:24.5]} 42. Rd4+ {[%clk 0:00:05.2]} 42... Ke3 {[%clk
0:00:20.2]} 43. Rdd7 {[%clk 0:00:05.1]} 43... Kf2 {[%clk 0:00:18.9]} 44. Rdf7
{[%clk 0:00:04.8]} 44... Rc5 {[%clk 0:00:17.5]} 45. h4 {[%clk 0:00:04.5]} 45...
Kf1 {[%clk 0:00:17.2]} 46. h5 {[%clk 0:00:04.4]} 46... Re4 {[%clk 0:00:16.6]}
47. Kh3 {[%clk 0:00:03.9]} 47... Rc3+ {[%clk 0:00:16.5]} 48. Rg3 {[%clk
0:00:03.8]} 48... Rxg3+ {[%clk 0:00:14.3]} 49. Kxg3 {[%clk 0:00:04.7]} 49...
Rg4+ {[%clk 0:00:14.8]} 50. Kh3 {[%clk 0:00:04.9]} 50... Rg5 {[%clk 0:00:15.2]}
51. Kh4 {[%clk 0:00:04.7]} 51... Rxg2 {[%clk 0:00:13.9]} 52. h6 {[%clk
0:00:03.7]} 52... Ke2 {[%clk 0:00:11.9]} 53. Rxf5 {[%clk 0:00:03.5]} 53... Ke3
{[%clk 0:00:12]} 54. Rh5 {[%clk 0:00:03.2]} 54... Rg8 {[%clk 0:00:11.1]} 55. h7
{[%clk 0:00:03.4]} 55... Rh8 {[%clk 0:00:11.2]} 56. Kg5 {[%clk 0:00:04.3]} 56...
Ke4 {[%clk 0:00:11.8]} 57. Kg6 {[%clk 0:00:04.8]} 57... Re8 {[%clk 0:00:08.5]}
58. h8=Q {[%clk 0:00:04.7]} 58... Re6+ {[%clk 0:00:09.4]} 59. Kg5 {[%clk
0:00:04.7]} 59... Re5+ {[%clk 0:00:09.8]} 60. Kg4 {[%clk 0:00:04.9]} 60... Rd5
{[%clk 0:00:07.7]} 61. Rxd5 {[%clk 0:00:04.7]} 61... Ke3 {[%clk 0:00:07.4]} 62.
Qf6 {[%clk 0:00:05.6]} 62... Ke2 {[%clk 0:00:08.2]} 63. Qe5+ {[%clk 0:00:05.8]}
63... Kf1 {[%clk 0:00:08.3]} 64. Qd6 {[%clk 0:00:06.1]} 64... Kg2 {[%clk
0:00:09.2]} 65. Qc6 {[%clk 0:00:06.7]} 65... Kf1 {[%clk 0:00:08.9]} 66. Qc4+
{[%clk 0:00:07.6]} 66... Ke1 {[%clk 0:00:09.2]} 67. Rd3 {[%clk 0:00:08.5]} 67...
Ke2 {[%clk 0:00:09.3]} 68. Qc2+ {[%clk 0:00:08.9]} 68... Ke1 {[%clk 0:00:10.2]}
69. Rd1# {[%clk 0:00:09.7]} 1-0

[Event "*** Titled Tuesday Blitz"]
[Site "Chess.com"]
[Date "2021.03.09"]
[Round "9"]
[White "GM_Crest"]
[Black "lamomiablanca"]
[Result "1-0"]
[WhiteElo "2754"]
[BlackElo "2422"]
[TimeControl "180+1"]
[EndTime "11:49:05 PST"]
[Termination "GM_Crest won by checkmate"]

1. d4 {[%clk 0:03:00.9]} 1... Nf6 {[%clk 0:02:59.1]} 2. c4 {[%clk 0:02:59.6]}
2... c5 {[%clk 0:02:56.2]} 3. d5 {[%clk 0:02:58.5]} 3... e5 {[%clk 0:02:53.1]}
4. Nc3 {[%clk 0:02:58]} 4... d6 {[%clk 0:02:52.9]} 5. e4 {[%clk 0:02:58.6]} 5...
Nbd7 {[%clk 0:02:52.8]} 6. g3 {[%clk 0:02:55.3]} 6... g6 {[%clk 0:02:50.5]} 7.
Bg2 {[%clk 0:02:55.6]} 7... Bg7 {[%clk 0:02:50.6]} 8. Nf3 {[%clk 0:02:54.1]}
8... a6 {[%clk 0:02:50.5]} 9. a4 {[%clk 0:02:53.2]} 9... h5 {[%clk 0:02:47]} 10.
h3 {[%clk 0:02:50.3]} 10... Nh7 {[%clk 0:02:42.3]} 11. Be3 {[%clk 0:02:47.3]}
11... O-O {[%clk 0:02:30.6]} 12. O-O {[%clk 0:02:11.1]} 12... Qe7 {[%clk
0:02:15.5]} 13. Ne1 {[%clk 0:02:05.4]} 13... h4 {[%clk 0:02:14.2]} 14. g4 {[%clk
0:01:58.2]} 14... Bf6 {[%clk 0:02:09.6]} 15. Nf3 {[%clk 0:01:57.5]} 15... Ng5
{[%clk 0:02:01.3]} 16. Qd2 {[%clk 0:01:56.6]} 16... Nxf3+ {[%clk 0:01:58.2]} 17.
Bxf3 {[%clk 0:01:57.5]} 17... g5 {[%clk 0:01:45.8]} 18. a5 {[%clk 0:01:56.9]}
18... Re8 {[%clk 0:01:42.2]} 19. b4 {[%clk 0:01:54.6]} 19... cxb4 {[%clk
0:01:41.1]} 20. Na4 {[%clk 0:01:54.9]} 20... Nf8 {[%clk 0:01:27.4]} 21. Qxb4
{[%clk 0:01:53.1]} 21... Ng6 {[%clk 0:01:25.8]} 22. Nb6 {[%clk 0:01:52.1]} 22...
Rb8 {[%clk 0:01:25.2]} 23. c5 {[%clk 0:01:52.6]} 23... dxc5 {[%clk 0:01:08.3]}
24. Bxc5 {[%clk 0:01:48.9]} 24... Qd8 {[%clk 0:01:08.5]} 25. Kh2 {[%clk
0:01:44.8]} 25... Nf4 {[%clk 0:01:07.8]} 26. Rfd1 {[%clk 0:01:43.9]} 26... Bg7
{[%clk 0:00:59.5]} 27. Bd6 {[%clk 0:01:42.4]} 27... Bf8 {[%clk 0:00:57.2]} 28.
Bxf8 {[%clk 0:01:41.5]} 28... Rxf8 {[%clk 0:00:56.9]} 29. Rac1 {[%clk
0:01:37.3]} 29... Qf6 {[%clk 0:00:49.6]} 30. Rc3 {[%clk 0:01:30.1]} 30... Ne2
{[%clk 0:00:40.8]} 31. Re3 {[%clk 0:01:22.6]} 31... Nd4 {[%clk 0:00:30.1]} 32.
Qc3 {[%clk 0:01:13.2]} 32... Rd8 {[%clk 0:00:23]} 33. Kg2 {[%clk 0:01:12.4]}
33... Bd7 {[%clk 0:00:21]} 34. Qc7 {[%clk 0:01:12.1]} 34... Bb5 {[%clk
0:00:19.5]} 35. Rc1 {[%clk 0:01:07.6]} 35... Rf8 {[%clk 0:00:15.4]} 36. d6
{[%clk 0:00:58.8]} 36... Rbd8 {[%clk 0:00:13.3]} 37. d7 {[%clk 0:00:56.3]} 37...
Qf4 {[%clk 0:00:12.6]} 38. Nd5 {[%clk 0:00:52.2]} 38... Rxd7 {[%clk 0:00:08]}
39. Qxd7 {[%clk 0:00:49.9]} 39... Qxe3 {[%clk 0:00:07]} 40. fxe3 {[%clk
0:00:45]} 40... Bxd7 {[%clk 0:00:05.4]} 41. exd4 {[%clk 0:00:45.2]} 41... exd4
{[%clk 0:00:05.7]} 42. Rc7 {[%clk 0:00:44.6]} 42... Bc6 {[%clk 0:00:04.4]} 43.
Ne7+ {[%clk 0:00:44.6]} 43... Kg7 {[%clk 0:00:04.2]} 44. Nxc6 {[%clk 0:00:45.5]}
44... bxc6 {[%clk 0:00:04.7]} 45. Rxc6 {[%clk 0:00:45.8]} 45... Rb8 {[%clk
0:00:05.2]} 46. Rxa6 {[%clk 0:00:45.2]} 46... Rb2+ {[%clk 0:00:05.8]} 47. Kf1
{[%clk 0:00:45.4]} 47... d3 {[%clk 0:00:06.4]} 48. Rd6 {[%clk 0:00:44.9]} 48...
Ra2 {[%clk 0:00:05.9]} 49. Rd5 {[%clk 0:00:44.1]} 49... d2 {[%clk 0:00:03.5]}
50. Rxg5+ {[%clk 0:00:41.8]} 50... Kf6 {[%clk 0:00:03.7]} 51. Rd5 {[%clk
0:00:42.3]} 51... Ra1+ {[%clk 0:00:03.6]} 52. Ke2 {[%clk 0:00:41.8]} 52... Ra2
{[%clk 0:00:03.6]} 53. g5+ {[%clk 0:00:39.7]} 53... Kg6 {[%clk 0:00:03.4]} 54.
Kd1 {[%clk 0:00:39.9]} 54... Rb2 {[%clk 0:00:02.1]} 55. Rxd2 {[%clk 0:00:39]}
55... Rb3 {[%clk 0:00:03]} 56. Ke2 {[%clk 0:00:39]} 56... Kxg5 {[%clk
0:00:03.5]} 57. Bg4 {[%clk 0:00:35.7]} 57... Ra3 {[%clk 0:00:03.9]} 58. Rd5+
{[%clk 0:00:35.1]} 58... Kf4 {[%clk 0:00:04.5]} 59. Bf5 {[%clk 0:00:35.4]} 59...
Ra2+ {[%clk 0:00:04.1]} 60. Kd3 {[%clk 0:00:35.1]} 60... Kg3 {[%clk 0:00:04.1]}
61. Kc4 {[%clk 0:00:34.6]} 61... Kf4 {[%clk 0:00:04.4]} 62. Kb5 {[%clk
0:00:34.7]} 62... Rb2+ {[%clk 0:00:03.7]} 63. Kc6 {[%clk 0:00:34.7]} 63... Ke3
{[%clk 0:00:03.8]} 64. a6 {[%clk 0:00:33.8]} 64... Ra2 {[%clk 0:00:03.2]} 65.
Kb6 {[%clk 0:00:34]} 65... f6 {[%clk 0:00:01.9]} 66. a7 {[%clk 0:00:33.4]} 66...
Rb2+ {[%clk 0:00:02.8]} 67. Rb5 {[%clk 0:00:32.6]} 67... Ra2 {[%clk 0:00:03.7]}
68. Ra5 {[%clk 0:00:32.3]} 68... Rb2+ {[%clk 0:00:04.2]} 69. Ka6 {[%clk
0:00:32.6]} 69... Kf3 {[%clk 0:00:03.8]} 70. a8=Q {[%clk 0:00:32.4]} 70... Kg2
{[%clk 0:00:04.7]} 71. e5+ {[%clk 0:00:32.1]} 71... Kh2 {[%clk 0:00:05.3]} 72.
exf6 {[%clk 0:00:32.1]} 72... Ra2 {[%clk 0:00:04.8]} 73. Rxa2+ {[%clk
0:00:31.2]} 73... Kg1 {[%clk 0:00:05.7]} 74. Qg2# {[%clk 0:00:30.2]} 1-0

[Event "*** Titled Tuesday Blitz"]
[Site "Chess.com"]
[Date "2021.03.09"]
[Round "9"]
[White "KubaGepard"]
[Black "Mikhail_Golubev"]
[Result "1/2-1/2"]
[WhiteElo "2411"]
[BlackElo "2564"]
[TimeControl "180+1"]
[EndTime "11:49:06 PST"]
[Termination "Game drawn by stalemate"]

1. e4 {[%clk 0:03:00.9]} 1... c5 {[%clk 0:02:59.3]} 2. Nf3 {[%clk 0:03:00.3]}
2... d6 {[%clk 0:02:58.9]} 3. Nc3 {[%clk 0:02:59.9]} 3... Nc6 {[%clk 0:02:52.3]}
4. d4 {[%clk 0:02:59.2]} 4... cxd4 {[%clk 0:02:52]} 5. Nxd4 {[%clk 0:03:00.1]}
5... g6 {[%clk 0:02:50.3]} 6. Be3 {[%clk 0:02:58.1]} 6... Bg7 {[%clk 0:02:48.9]}
7. f3 {[%clk 0:02:56.9]} 7... Nf6 {[%clk 0:02:47.1]} 8. Qd2 {[%clk 0:02:54.7]}
8... O-O {[%clk 0:02:47.5]} 9. g4 {[%clk 0:02:53.3]} 9... Nxd4 {[%clk
0:02:38.7]} 10. Bxd4 {[%clk 0:02:51.8]} 10... Be6 {[%clk 0:02:38.7]} 11. Nd5
{[%clk 0:02:49.8]} 11... Bxd5 {[%clk 0:02:34.6]} 12. exd5 {[%clk 0:02:50.7]}
12... Rc8 {[%clk 0:01:57.4]} 13. h4 {[%clk 0:02:48.6]} 13... Qc7 {[%clk
0:01:55.3]} 14. Rh2 {[%clk 0:02:48]} 14... e5 {[%clk 0:01:48.9]} 15. dxe6 {[%clk
0:02:44.4]} 15... fxe6 {[%clk 0:01:48.7]} 16. O-O-O {[%clk 0:02:36.5]} 16... Nd5
{[%clk 0:01:38.5]} 17. Bxg7 {[%clk 0:02:34.4]} 17... Qxg7 {[%clk 0:01:38.1]} 18.
Bd3 {[%clk 0:02:25.7]} 18... Nf4 {[%clk 0:01:31]} 19. h5 {[%clk 0:02:10.4]}
19... g5 {[%clk 0:01:30.3]} 20. Kb1 {[%clk 0:01:59.8]} 20... d5 {[%clk
0:01:22.7]} 21. h6 {[%clk 0:01:57.9]} 21... Qf6 {[%clk 0:01:18.1]} 22. Rf1
{[%clk 0:01:43.4]} 22... Rf7 {[%clk 0:01:16.4]} 23. c3 {[%clk 0:01:42.4]} 23...
a6 {[%clk 0:01:11.9]} 24. Bc2 {[%clk 0:01:42]} 24... b5 {[%clk 0:01:10.8]} 25.
Re1 {[%clk 0:01:31.9]} 25... Rfc7 {[%clk 0:00:53.8]} 26. a3 {[%clk 0:01:28.5]}
26... a5 {[%clk 0:00:47.8]} 27. Qe3 {[%clk 0:01:08.8]} 27... b4 {[%clk
0:00:42.2]} 28. Qe5 {[%clk 0:01:04.8]} 28... Qe7 {[%clk 0:00:30.9]} 29. cxb4
{[%clk 0:00:49.8]} 29... axb4 {[%clk 0:00:30.6]} 30. Bf5 {[%clk 0:00:46.3]}
30... bxa3 {[%clk 0:00:26.8]} 31. Bxe6+ {[%clk 0:00:45.7]} 31... Nxe6 {[%clk
0:00:23.3]} 32. Qxe6+ {[%clk 0:00:45.1]} 32... Qxe6 {[%clk 0:00:22.3]} 33. Rxe6
{[%clk 0:00:46]} 33... axb2 {[%clk 0:00:16.3]} 34. Rxb2 {[%clk 0:00:45.6]} 34...
Rc1+ {[%clk 0:00:15.7]} 35. Ka2 {[%clk 0:00:45.5]} 35... Ra8+ {[%clk 0:00:15.3]}
36. Kb3 {[%clk 0:00:45.5]} 36... Rb8+ {[%clk 0:00:15.3]} 37. Ka2 {[%clk
0:00:45.5]} 37... Rxb2+ {[%clk 0:00:13.4]} 38. Kxb2 {[%clk 0:00:45.5]} 38... Rf1
{[%clk 0:00:13.3]} 39. Re5 {[%clk 0:00:45.2]} 39... Rxf3 {[%clk 0:00:11.7]} 40.
Rxg5+ {[%clk 0:00:42.5]} 40... Kf8 {[%clk 0:00:11.7]} 41. Rxd5 {[%clk
0:00:40.3]} 41... Rh3 {[%clk 0:00:10.2]} 42. g5 {[%clk 0:00:35.9]} 42... Rh5
{[%clk 0:00:08.7]} 43. Rf5+ {[%clk 0:00:28.2]} 43... Kg8 {[%clk 0:00:07.2]} 44.
Kc3 {[%clk 0:00:27.1]} 44... Rh3+ {[%clk 0:00:06.1]} 45. Kd4 {[%clk 0:00:26.9]}
45... Rg3 {[%clk 0:00:06.7]} 46. Ke5 {[%clk 0:00:26.4]} 46... Rg1 {[%clk
0:00:05.9]} 47. Kf6 {[%clk 0:00:26]} 47... Rg2 {[%clk 0:00:05.7]} 48. Rf3 {[%clk
0:00:25.5]} 48... Rg1 {[%clk 0:00:05.6]} 49. Ke7 {[%clk 0:00:22.9]} 49... Re1+
{[%clk 0:00:05.3]} 50. Kf6 {[%clk 0:00:22.1]} 50... Rg1 {[%clk 0:00:05.5]} 51.
Re3 {[%clk 0:00:21.7]} 51... Rf1+ {[%clk 0:00:05.4]} 52. Ke7 {[%clk 0:00:21.7]}
52... Rg1 {[%clk 0:00:05.4]} 53. Re5 {[%clk 0:00:22.2]} 53... Rg2 {[%clk
0:00:04.7]} 54. Rf5 {[%clk 0:00:21.9]} 54... Re2+ {[%clk 0:00:04]} 55. Kf6
{[%clk 0:00:21.9]} 55... Re1 {[%clk 0:00:04.1]} 56. Rc5 {[%clk 0:00:19.8]} 56...
Rf1+ {[%clk 0:00:04.3]} 57. Ke6 {[%clk 0:00:20.1]} 57... Re1+ {[%clk 0:00:04.3]}
58. Kf5 {[%clk 0:00:20.2]} 58... Rf1+ {[%clk 0:00:04.4]} 59. Ke6 {[%clk
0:00:20.2]} 59... Re1+ {[%clk 0:00:04.6]} 60. Re5 {[%clk 0:00:20.5]} 60... Rf1
{[%clk 0:00:03.7]} 61. Kd7 {[%clk 0:00:21]} 61... Rd1+ {[%clk 0:00:03.8]} 62.
Ke7 {[%clk 0:00:21.4]} 62... Rf1 {[%clk 0:00:03.8]} 63. Ke8 {[%clk 0:00:20]}
63... Rf2 {[%clk 0:00:04.1]} 64. Re6 {[%clk 0:00:19.8]} 64... Rf1 {[%clk
0:00:03.9]} 65. Re7 {[%clk 0:00:19.8]} 65... Rf2 {[%clk 0:00:03.7]} 66. Rg7+
{[%clk 0:00:19.1]} 66... Kh8 {[%clk 0:00:03.9]} 67. Rf7 {[%clk 0:00:19.5]} 67...
Rxf7 {[%clk 0:00:03.8]} 68. Kxf7 {[%clk 0:00:18]} 1/2-1/2

[Event "*** Titled Tuesday Blitz"]
[Site "Chess.com"]
[Date "2021.03.09"]
[Round "9"]
[White "FMOlexandrProhorov"]
[Black "dosto07"]
[Result "1-0"]
[WhiteElo "2122"]
[BlackElo "2289"]
[TimeControl "180+1"]
[EndTime "11:49:07 PST"]
[Termination "FMOlexandrProhorov won on time"]

1. e4 {[%clk 0:03:00.7]} 1... e5 {[%clk 0:02:57.1]} 2. Nf3 {[%clk 0:02:52.8]}
2... Nc6 {[%clk 0:02:56.7]} 3. c3 {[%clk 0:02:48.2]} 3... Nf6 {[%clk 0:02:54.2]}
4. d4 {[%clk 0:02:45.1]} 4... Nxe4 {[%clk 0:02:53]} 5. d5 {[%clk 0:02:43.4]}
5... Ne7 {[%clk 0:02:47.1]} 6. Nxe5 {[%clk 0:02:41.9]} 6... Ng6 {[%clk
0:02:43.4]} 7. Nf3 {[%clk 0:02:27]} 7... Bc5 {[%clk 0:02:37.6]} 8. Be3 {[%clk
0:02:14.3]} 8... Bxe3 {[%clk 0:02:34.5]} 9. fxe3 {[%clk 0:02:13.9]} 9... O-O
{[%clk 0:02:34.9]} 10. Bd3 {[%clk 0:02:13]} 10... Qe7 {[%clk 0:02:26.7]} 11. O-O
{[%clk 0:02:11.4]} 11... d6 {[%clk 0:02:25.2]} 12. Nbd2 {[%clk 0:02:09]} 12...
Nc5 {[%clk 0:02:21.3]} 13. Qe2 {[%clk 0:02:06.7]} 13... Bg4 {[%clk 0:01:59]} 14.
h3 {[%clk 0:01:52.4]} 14... Bxf3 {[%clk 0:01:57.2]} 15. Nxf3 {[%clk 0:01:52.2]}
15... Rfe8 {[%clk 0:01:56]} 16. Rae1 {[%clk 0:01:50.8]} 16... Nxd3 {[%clk
0:01:47.2]} 17. Qxd3 {[%clk 0:01:50.5]} 17... Qe4 {[%clk 0:01:47.5]} 18. Qd4
{[%clk 0:01:29.6]} 18... h6 {[%clk 0:01:37.5]} 19. Nd2 {[%clk 0:01:23.3]} 19...
Qxd4 {[%clk 0:01:34.3]} 20. cxd4 {[%clk 0:01:14.5]} 20... Re7 {[%clk 0:01:20.6]}
21. Kf2 {[%clk 0:01:13.3]} 21... Rae8 {[%clk 0:01:20.8]} 22. g3 {[%clk
0:01:08.6]} 22... Nf8 {[%clk 0:01:14.6]} 23. e4 {[%clk 0:00:40.4]} 23... Nd7
{[%clk 0:01:13.7]} 24. Kf3 {[%clk 0:00:40.3]} 24... Nf6 {[%clk 0:01:08.4]} 25.
g4 {[%clk 0:00:17.8]} 25... c6 {[%clk 0:01:05.8]} 26. dxc6 {[%clk 0:00:16.9]}
26... bxc6 {[%clk 0:01:06.2]} 27. e5 {[%clk 0:00:11.7]} 27... dxe5 {[%clk
0:00:57.7]} 28. dxe5 {[%clk 0:00:12.6]} 28... Rxe5 {[%clk 0:00:55.8]} 29. Rxe5
{[%clk 0:00:13.5]} 29... Rxe5 {[%clk 0:00:55.8]} 30. Rc1 {[%clk 0:00:14.4]}
30... c5 {[%clk 0:00:49.1]} 31. Nb3 {[%clk 0:00:14.3]} 31... Nd7 {[%clk
0:00:47.4]} 32. Rd1 {[%clk 0:00:14.1]} 32... Nb6 {[%clk 0:00:38]} 33. Rd8+
{[%clk 0:00:13.4]} 33... Kh7 {[%clk 0:00:37.3]} 34. Rf8 {[%clk 0:00:06.2]} 34...
f6 {[%clk 0:00:31.5]} 35. Rf7 {[%clk 0:00:06.1]} 35... c4 {[%clk 0:00:31.2]} 36.
Nd4 {[%clk 0:00:05.9]} 36... Nd5 {[%clk 0:00:13.3]} 37. Nf5 {[%clk 0:00:05.2]}
37... Kg8 {[%clk 0:00:12]} 38. Rxg7+ {[%clk 0:00:05]} 38... Kf8 {[%clk
0:00:12.4]} 39. Rxa7 {[%clk 0:00:05.9]} 39... c3 {[%clk 0:00:11.4]} 40. bxc3
{[%clk 0:00:05.6]} 40... Nxc3 {[%clk 0:00:12]} 41. Nxh6 {[%clk 0:00:05.9]} 41...
Rd5 {[%clk 0:00:10.4]} 42. Rf7+ {[%clk 0:00:05.7]} 42... Ke8 {[%clk 0:00:09.1]}
43. Rxf6 {[%clk 0:00:06.6]} 43... Rd3+ {[%clk 0:00:08.8]} 44. Kf4 {[%clk
0:00:05.9]} 44... Nd5+ {[%clk 0:00:07.7]} 45. Ke5 {[%clk 0:00:06.3]} 45... Nxf6
{[%clk 0:00:07.4]} 46. Kxf6 {[%clk 0:00:07.2]} 46... Rd2 {[%clk 0:00:06.9]} 47.
h4 {[%clk 0:00:07.3]} 47... Rxa2 {[%clk 0:00:06.4]} 48. g5 {[%clk 0:00:07.8]}
48... Ra6+ {[%clk 0:00:06.9]} 49. Kf5 {[%clk 0:00:08]} 49... Kf8 {[%clk
0:00:05.5]} 50. Ng4 {[%clk 0:00:08.2]} 50... Kg8 {[%clk 0:00:05.5]} 51. Ne5
{[%clk 0:00:08.6]} 51... Ra5 {[%clk 0:00:05.4]} 52. h5 {[%clk 0:00:09.5]} 52...
Kg7 {[%clk 0:00:05.5]} 53. h6+ {[%clk 0:00:09.6]} 53... Kh7 {[%clk 0:00:05.9]}
54. Kf6 {[%clk 0:00:08.8]} 54... Ra6+ {[%clk 0:00:05]} 55. Kf5 {[%clk
0:00:09.3]} 55... Ra5 {[%clk 0:00:05.3]} 56. Ke4 {[%clk 0:00:07.8]} 56... Ra4+
{[%clk 0:00:04.6]} 57. Kf3 {[%clk 0:00:07.6]} 57... Ra3+ {[%clk 0:00:04.5]} 58.
Kg4 {[%clk 0:00:07.9]} 58... Ra5 {[%clk 0:00:04.7]} 59. Nf3 {[%clk 0:00:07.5]}
59... Ra3 {[%clk 0:00:03.2]} 60. Nh4 {[%clk 0:00:07]} 60... Ra4+ {[%clk
0:00:02.9]} 61. Kh5 {[%clk 0:00:07.4]} 61... Ra5 {[%clk 0:00:03]} 62. Nf3 {[%clk
0:00:07.5]} 62... Rb5 {[%clk 0:00:02.8]} 63. Nd4 {[%clk 0:00:07.4]} 63... Ra5
{[%clk 0:00:02.9]} 64. Ne6 {[%clk 0:00:07.7]} 64... Rb5 {[%clk 0:00:02.6]} 65.
Nf4 {[%clk 0:00:07.8]} 1-0